Cogmind - Beta 13 @@@ ROGUE MODE // 2024.03.03 @ 15:33:02 Player: Baxter Result: Destroyed by D-53 Grenadier with Mini Grenade Launcher Performance ------------- Evolutions (1) 500 Regions Visited (4) 800 Robots Destroyed (74) 370 Value Destroyed (1535) 1535 Prototype IDs (3) 60 Alien Tech Used (0) 0 Bonus (0) 0 TOTAL SCORE: 3265 Bonus ------- None Cogmind --------- Core Integrity 0/400 Matter 290/300 Energy 91/100 System Corruption 2% Temperature Cool (1) Movement Treading (160) Location -9/Mines Parts ------- > --- POWER (1) -------- (None) > --- PROPULSION (3) --- Improved Treads > --- UTILITY (3) ------ Large Storage Unit Signal Interpreter Hacking Suite > --- WEAPON (2) ------- (None) > --- INVENTORY (15) --- Light Ion Engine Improved Ion Engine Improved Ion Engine Light Nuclear Core Cesium-ion Thruster Medium Storage Unit Medium Matter Pod (100) Structural Scanner Terrain Scan Processor Improved Light Armor Plating Authchip [R/Combat] Heavy Assault Rifle Heavy Assault Rifle Peak State ------------ > --- POWER ------------ Light Deuterium Engine > --- PROPULSION ------- Light Treads Light Treads Wheel > --- UTILITY ---------- Large Storage Unit Improved Sensor Array Improved Light Armor Plating > --- WEAPON ----------- Minigun Katana > --- INVENTORY -------- Ion Engine Ion Engine Cesium-ion Thruster Medium Storage Unit Medium Matter Pod Hacking Suite Authchip [R/Combat] Decoy Drone Bay Light Assault Rifle Grenade Launcher [Rating: 22] Favorites ----------- Power Heavy Ion Engine Engine Heavy Ion Engine Propulsion Light Treads Treads Light Treads Wheel Wheel Utility Large Storage Unit Device Tractor Beam Storage Large Storage Unit Processor Signal Interpreter Hackware Hacking Suite Protection Improved Light Armor Plating Weapon Katana Energy Gun EM Pulse Gun Ballistic Gun Light Assault Rifle Launcher Grenade Launcher Slashing Weapon Katana Build | -11 -10 -10 -9 -9 ------- Run | Yrd Mat Min Mat Min Slots Evolved 2 | . . . 2 . Power . | . . . . . Propulsion 1 | . . . 1 . Utility 1 | . . . 1 . Weapon . | . . . . . Parts Attached 58 | 7 7 8 31 5 Power 6 | 1 . 1 4 . Engine 6 | 1 . 1 4 . Core . | . . . . . Reactor . | . . . . . Propulsion 19 | 2 3 1 9 4 Treads 9 | 1 1 1 5 1 Leg . | . . . . . Wheel 10 | 1 2 . 4 3 Hover . | . . . . . Flight . | . . . . . Utility 13 | 1 3 2 7 . Device 4 | . . 2 2 . Storage 5 | 1 3 . 1 . Processor 1 | . . . 1 . Hackware 1 | . . . 1 . Protection 2 | . . . 2 . Artifact . | . . . . . Weapon 20 | 3 1 4 11 1 Energy Gun 6 | 3 1 1 1 . Energy Cannon . | . . . . . Ballistic Gun 9 | . . 3 6 . Ballistic Cannon . | . . . . . Launcher 2 | . . . 1 1 Special Weapon . | . . . . . Impact Weapon . | . . . . . Slashing Weapon 3 | . . . 3 . Piercing Weapon . | . . . . . Special Melee Weapon . | . . . . . Unidentified Prototypes 1 | . . . 1 . Parts Lost 22 | . . 4 10 8 Power 3 | . . . 2 1 Propulsion 9 | . . 1 3 5 Utility 2 | . . . 2 . Weapon 8 | . . 3 3 2 Highest Loss Streak 7 | . . 2 3 7 To Critical Strikes . | . . . . . Average Slot Usage (%) 98 | . 97 99 96 99 Engine 12 | . 14 14 10 11 Treads 14 | . 13 13 14 13 Wheel 15 | . 14 14 17 18 Device 6 | . . 9 7 . Storage 15 | . 26 18 10 11 Processor 2 | . . . 3 11 Hackware 3 | . . . 5 11 Protection 1 | . . . 4 . Energy Gun 4 | . 27 2 . . Ballistic Gun 13 | . . 24 9 2 Launcher 1 | . . . . 8 Slashing Weapon 5 | . . . 10 11 Naked Turns . | . . . . . Heaviest Build 39 | 14 39 39 37 33 Greatest Support 40 | 20 20 20 40 40 Greatest Overweight (x) 3 | . 3 3 3 3 Average Overweight (x) 1 | . 2 1 . . Largest Inventory Capacity 15 | 8 15 15 15 15 Average Capacity 14 | 7 14 15 14 15 Most Carried 15 | 7 15 15 15 15 Average Carried 14 | 5 12 14 14 14 Final Capacity 15 | 8 15 15 15 15 Final Carried 15 | 7 15 15 12 13 Class Distribution -------------------- 76% | Mutant 23% | Scavenger-Mutant Dominant Class ---------------- Mutant | -10/Materials Mutant | -10/Mines Mutant | -9/Materials Scavenger-Mutant | -9/Mines Resources | -11 -10 -10 -9 -9 ----------- Run | Yrd Mat Min Mat Min Matter Collected 1028 | 267 133 157 405 66 Remotely 66 | . . 50 16 . Salvage Created 2464 | 68 357 271 1505 263 Parts 147 | 1 22 11 95 18 Haulers Intercepted 7 | . 2 . 5 . Recyclers Shooed . | . . . . . Parts Field Recycled . | . . . . . Retrieved Matter . | . . . . . Parts Self-Destructed . | . . . . . Prevented . | . . . . . Kills | -11 -10 -10 -9 -9 ------- Run | Yrd Mat Min Mat Min Combat Hostiles Destroyed 48 | . 6 4 30 8 Melee 30 | . . . 24 6 Guns 14 | . 6 3 5 . AOE 3 | . . . 1 2 Classes Destroyed 10 | 1 5 1 2 1 Worker 6 | . . 1 3 2 Builder 2 | . . . . 2 Hauler 7 | . 2 . 5 . Recycler 3 | 1 . 1 1 . Mechanic 1 | . . . 1 . Operator 2 | . 1 . 1 . Watcher 5 | . 2 . 3 . Swarmer 19 | . 3 . 12 4 Grunt 21 | . 3 4 10 4 Sentry 8 | . . . 8 . Best Kill Streak 6 | 1 3 5 6 6 Combat Bots Only 6 | . 2 3 6 4 Max Kills in Single Turn 2 | 1 2 1 1 2 Gunslinging . | . . . . . Exploded 1 | . . . 1 1 Melee 1 | . . . 1 1 Uniques/NPCs Destroyed . | . . . . . Combat | -11 -10 -10 -9 -9 -------- Run | Yrd Mat Min Mat Min Hostile Shots Fired 271 | . 13 46 173 39 Missed 61 | . 5 11 34 11 Damage Taken 2804 | . 111 464 1612 617 Core 512 | . 25 67 254 166 Absorbed by Shields . | . . . . . Regen/Repaired (Parts) 181 | . 3 . 178 . Core Remaining (%) 81 | 100 . 63 . . Volleys Fired 80 | 1 23 26 28 2 Largest 2 | 2 2 2 2 1 Hottest 80 | 80 80 80 70 30 Shots Fired 132 | 2 46 50 32 2 Gun 130 | 2 46 50 32 . Cannon . | . . . . . Launcher 2 | . . . . 2 Special . | . . . . . Kinetic 60 | . . 32 28 . Thermal . | . . . . . Explosive 2 | . . . . 2 Electromagnetic 70 | 2 46 18 4 . Robot Hit Streak 9 | 2 9 7 8 . Robot Miss Streak 3 | . 3 3 2 . Penetration Max . | . . . . . Secondary Targets . | . . . . . Shots Hit Robots 197 | 2 30 35 113 17 Core Hits 85 | 1 15 14 42 13 Critical Kills . | . . . . . Critical Parts Destroyed . | . . . . . Critical Strikes 9 | . . . 8 1 Sever 9 | . . . 8 1 Melee Attacks 144 | . . . 119 25 Impact . | . . . . . Slashing 144 | . . . 119 25 Piercing . | . . . . . Sneak Attacks 15 | . . . 12 3 Combat Hostiles 1 | . . . 1 . Follow-up Attacks . | . . . . . Damage Inflicted 5674 | 46 537 372 3832 887 Guns 1221 | 12 450 372 387 . Cannons . | . . . . . Explosions 374 | 34 87 . 52 201 Melee 4079 | . . . 3393 686 Ramming . | . . . . . Kinetic 553 | . . 194 359 . Thermal 173 | 34 87 . 52 . Explosive 201 | . . . . 201 Electromagnetic 668 | 12 450 178 28 . Impact . | . . . . . Slashing 4079 | . . . 3393 686 Piercing . | . . . . . Highest Corruption 2 | . 1 1 2 2 Average Corruption 1 | . 1 1 2 2 Corruption Purged . | . . . . . Corruption Blocked . | . . . . . Effects 48 | . 10 18 10 10 Message Errors 18 | . 4 10 2 2 Matter Fused 5 | . . 2 . 3 Heat Flow Errors 5 | . . 1 2 2 Energy Discharges 10 | . 5 1 3 1 Data Loss (minor) 6 | . 1 3 1 1 Data Loss (major) 4 | . . 1 2 1 Overload Shots . | . . . . . Overflow Damage 217 | . 11 . 153 53 Projectiles . | . . . . . Explosions 18 | . 11 . . 7 Melee 199 | . . . 153 46 Knockbacks . | . . . . . Impact . | . . . . . Kinetic . | . . . . . Secondary . | . . . . . Self-Inflicted Damage 63 | . 42 . 21 . Shots 3 | . 2 . 1 . Rammed . | . . . . . Targets Rammed . | . . . . . Kicked . | . . . . . Crushed . | . . . . . Highest Temperature 246 | 18 126 246 155 212 Average Temperature 84 | 12 46 138 43 94 Received Heat Transfer 789 | . 18 282 432 57 Siege Activations . | . . . . . Robots Corrupted 1 | . . 1 . . Combat Hostiles 1 | . . 1 . . Parts Fried 2 | . 1 1 . . Impact Corruptions . | . . . . . Robots Melted . | . . . . . Combat Hostiles . | . . . . . Parts Melted 1 | 1 . . . . Heat Transferred 250 | 50 150 . 50 . Parts Sabotaged . | . . . . . Parts Stolen . | . . . . . Parts Stripped . | . . . . . Power Chain Reactions 4 | 1 2 . 1 . Alert | -11 -10 -10 -9 -9 ------- Run | Yrd Mat Min Mat Min Peak Influence 296 | 5 178 75 296 203 Initial 37 | . 3 . . 37 Average 60 | 2 65 2 122 62 Maximum Alert Level 1 | . . . 1 1 Low Security (%) 92 | 100 100 100 84 85 Level 1 7 | . . . 15 14 Level 2 . | . . . . . Level 3 . | . . . . . Level 4 . | . . . . . Level 5 . | . . . . . High Security . | . . . . . Max Security . | . . . . . Squads Dispatched 4 | . . 1 3 . Investigation 3 | . . 1 2 . Extermination . | . . . . . Reinforcement 1 | . . . 1 . Assault . | . . . . . Garrison . | . . . . . Intercept . | . . . . . Searches Triggered . | . . . . . Construction Impeded . | . . . . . Haulers Reinforced . | . . . . . Active Scanning Responses . | . . . . . Cargo Convoy Interrupts . | . . . . . Stealth | -11 -10 -10 -9 -9 --------- Run | Yrd Mat Min Mat Min Distress Signals 1 | . 1 . . . Communications Jammed . | . . . . . Distress Signals . | . . . . . Times Spotted 69 | . 11 7 43 8 Peak Tracking Total 5 | . 2 4 5 3 Tactical Retreats 3 | . . . 3 . Traps | -11 -10 -10 -9 -9 ------- Run | Yrd Mat Min Mat Min Traps Triggered 6 | . 2 . 4 . Indirectly . | . . . . . Trap Hack Attempts . | . . . . . Triggered . | . . . . . Disarmed . | . . . . . Reprogrammed . | . . . . . Reused . | . . . . . Traps Extracted . | . . . . . Installed . | . . . . . Triggered . | . . . . . Machines | -11 -10 -10 -9 -9 ---------- Run | Yrd Mat Min Mat Min Machines Disabled 2 | . 1 . . 1 Max in Single Turn 1 | . 1 . . 1 Machines Repaired . | . . . . . Machines Dismantled . | . . . . . Machines Sabotaged . | . . . . . Overloaded Fab Kills . | . . . . . Hacking | -11 -10 -10 -9 -9 --------- Run | Yrd Mat Min Mat Min Machines Accessed 18 | . 6 3 9 . Terminals 10 | . 3 1 6 . Fabricators . | . . . . . Repair Stations 2 | . 1 . 1 . Recycling Units 2 | . 2 . . . Scanalyzers 2 | . . . 2 . Garrison Access . | . . . . . Total Hacks 46 | . 14 3 29 . Successful 37 | . 9 3 25 . Failed 9 | . 5 . 4 . Catastrophic 1 | . . . 1 . Database Lockouts . | . . . . . Manual 24 | . 9 5 10 . Terminals 22 | . 9 1 12 . Fabricators . | . . . . . Repair Stations 6 | . 2 . 4 . Recycling Units 3 | . 3 . . . Scanalyzers 13 | . . . 13 . Garrison Access . | . . . . . Terminal Hacks 8 | . 1 3 4 . Robot Analysis 2 | . 1 1 . . Open Door 2 | . . 2 . . Alert Level 2 | . . . 2 . Unreport Threat 2 | . . . 2 . Fabricator Hacks . | . . . . . Repair Station Hacks 6 | . 2 . 4 . Scan Component 3 | . 1 . 2 . Repair 3 | . 1 . 2 . Recycling Unit Hacks 3 | . 3 . . . Report Inventory 2 | . 2 . . . Retrieve Components 1 | . 1 . . . Scanalyzer 12 | . . . 12 . Insert Component 7 | . . . 7 . Analyze 5 | . . . 5 . Garrison Access Hacks . | . . . . . Unauthorized Hacks 8 | . 3 . 5 . Terminals 8 | . 3 . 5 . Botnet 8 | . 3 . 5 . Fabricators . | . . . . . Repair Stations . | . . . . . Recycling Units . | . . . . . Scanalyzers . | . . . . . Garrison Access . | . . . . . Data Cores Recovered 1 | . 1 . . . Used . | . . . . . Hacking Detections 9 | . 4 . 5 . Full Trace Events 5 | . 2 . 3 . Feedback Events 1 | . 1 . . . Corruption 1 | . 1 . . . Feedback Blocked . | . . . . . Robot Schematics Acquired . | . . . . . Robots Built . | . . . . . Authchips . | . . . . . Time . | . . . . . Total Robot Build Rating . | . . . . . Part Schematics Acquired 4 | . . . 4 . Parts Built . | . . . . . Authchips . | . . . . . Time . | . . . . . Total Part Build Rating . | . . . . . Parts Repaired 3 | . 1 . 2 . Time 102 | . 38 . 64 . Parts Recycled . | . . . . . Recycled Matter . | . . . . . Retrieved Matter . | . . . . . Retrieved Components 10 | . 10 . . . Parts Scanalyzed 5 | . . . 5 . Part Schematics Acquired 4 | . . . 4 . Parts Damaged 1 | . . . 1 . Bothacking | -11 -10 -10 -9 -9 ------------ Run | Yrd Mat Min Mat Min Used RIF Installer . | . . . . . Robots Hacked . | . . . . . Non-combat . | . . . . . Combat . | . . . . . Robot Hacks Applied . | . . . . . Relay Couplers Released . | . . . . . Fabnet Peak Effective % . | . . . . . Robots Rewired . | . . . . . Allies Hacked . | . . . . . Hacks Repelled . | . . . . . Allies | -11 -10 -10 -9 -9 -------- Run | Yrd Mat Min Mat Min Total Allies . | . . . . . Largest Group . | . . . . . Highest-Rated Group . | . . . . . Highest-Rated Ally . | . . . . . Total Orders . | . . . . . Ally Attacks . | . . . . . Total Damage . | . . . . . Kills . | . . . . . Allies Corrupted . | . . . . . Allies Melted . | . . . . . Intel | -11 -10 -10 -9 -9 ------- Run | Yrd Mat Min Mat Min Robot Analysis Total 2 | . 1 1 . . Derelict Logs Recovered 1 | . . 1 . . Drone Launches . | . . . . . Drone Recoveries . | . . . . . Exploration | -11 -10 -10 -9 -9 ------------- Run | Yrd Mat Min Mat Min Turns Passed 7905 | 147 813 3033 2893 1019 Spaces Moved 4083 | 83 546 1315 1543 596 Core 3 | 3 . . . . Treads 1933 | 78 13 1108 599 135 Legs . | . . . . . Wheels 2147 | 2 533 207 944 461 Hover . | . . . . . Flight . | . . . . . Fastest Speed 50 | 50 95 125 105 95 Average Speed 162 | 154 122 221 145 111 Slowest Speed 240 | 160 240 240 240 240 Overloaded Moves . | . . . . . Propulsion Burnouts . | . . . . . Robots Hopped . | . . . . . Cave-ins Triggered . | . . . . . Exploration Rate (%) 59 | 5 56 102 82 51 Regions Visited 4 Branch Regions 2 Pre-discovered Areas 1 | . . 1 . . Known Exits Taken 1 | . . . 1 . Unknown Exits Taken 3 | 1 1 1 . . Scrap Searched 2 | . . 1 . 1 Spaces Dug 13 | . . . 12 1 Terrain Destroyed 35 | 1 5 . 14 15 Melee 13 | . . . 12 1 Projectile . | . . . . . AOE 22 | 1 5 . 2 14 Terrain Rammed . | . . . . . Walls Destroyed . | . . . . . Machines Disabled . | . . . . . Actions | -11 -10 -10 -9 -9 --------- Run | Yrd Mat Min Mat Min Total 5039 | 97 651 1390 1986 915 Wait 562 | . 42 25 216 279 Move 4079 | 82 545 1314 1542 596 Hop . | . . . . . Pick Up 70 | 7 23 9 26 5 Fast Attach 21 | 6 2 2 10 1 Attach 21 | . 5 4 10 2 Detach 1 | . . . 1 . Swap 16 | 1 . 2 11 2 Drop 45 | . 11 8 23 3 Fire 80 | 1 23 26 28 2 Melee 144 | . . . 119 25 Ram . | . . . . . Kick . | . . . . . Crush . | . . . . . Escape Stasis . | . . . . . Rewire . | . . . . . Trap . | . . . . . Miscellaneous . | . . . . . Route ------- -11/Scrapyard -10/Materials (discovered 2 exits: *Mat / *Min) -10/Mines (discovered 2 exits: *Mat x2) -9/Materials (discovered 4 exits: *Mat x3 / *Min) -9/Mines History --------- Turn | Location | Event 33 | -11/Scrapyard | Discovered new exit (range 15) 148 | -11/Scrapyard | Entered Materials 326 | -10/Materials | Build established: Mutant 363 | -10/Materials | Discovered new exit (range 13) 448 | -10/Materials | Repaired Hacking Suite 900 | -10/Materials | Discovered new exit (range 12) 961 | -10/Materials | Entered Mines 1701 | -10/Mines | Discovered new exit (range 11) 1820 | -10/Mines | Discovered new exit (range 6) 1900 | -10/Mines | Met a Derelict shopkeep closing up shop 1951 | -10/Mines | Learned location of Zion (-6) 3014 | -10/Mines | Found the Drone Emporium 3043 | -10/Mines | Found Prototype Device 3994 | -10/Mines | Entered Materials 3994 | -9/Materials | Evolved 2 slots: Propulsion x1, Utility x1 4168 | -9/Materials | Lost 3 parts (1n1u1w) 4314 | -9/Materials | Identified Decoy Drone Bay 4670 | -9/Materials | Discovered new exit (range 9) 4881 | -9/Materials | Discovered new exit (range 14) 5414 | -9/Materials | Discovered new exit (range 3) 5419 | -9/Materials | Core integrity fell below 50% 5874 | -9/Materials | Discovered new exit (range 16) 5962 | -9/Materials | Identified exit to Materials 6393 | -9/Materials | Repaired Katana 6422 | -9/Materials | Repaired Lrg. Storage Unit 6500 | -9/Materials | Build established: Scavenger-Mutant 6886 | -9/Materials | Identified exit to Mines 6887 | -9/Materials | Entered Mines 7229 | -9/Mines | Found a hidden stash of uninstalled traps 7231 | -9/Mines | Assembled infested the area 7632 | -9/Mines | Deemed a non-threat by the Exiles lab entrance 7902 | -9/Mines | Core integrity fell below 20% 7906 | -9/Mines | Destroyed by D-53 Grenadier with Mini Grenade Launcher Last Messages --------------- 07760_ G-34 Mercenary destroyed. 07762_ The unstable cave ceiling collapses. 07798_ System corrupted: Matter fused (-6). 07811_ Acquired 6 matter. 07830_ System corrupted: Substantial component data lost. 07895_ Wheel destroyed. 07897_ Grenade Launcher destroyed. 07899_ Wheel destroyed. 07900_ U-05 Engineer lays Concrete. 07901_ Hvy. Ion Engine destroyed. 07901_ Lgt. Treads destroyed. 07901_ T-07 Excavator destroyed. 07901_ K-01 Serf destroyed. 07901_ U-05 Engineer lays Concrete. 07903_ The unstable cave ceiling collapses. 07903_ Wheel destroyed. 07903_ Katana destroyed. 07903_ U-05 Engineer destroyed. 07904_ The unstable cave ceiling collapses. Map ----- +----------------------------------------------------+ | ???# = ### #?????# #??????? | | ???# #?# #?????# #??????? | | ???#############?# #????## ######## #??????? | | ???????????????### ###### ##????# #??????? | | ???????????????# #????# ####???? | | ??#####??####??# ###### ## ## | | ?## #### #??# ## ##### # | | ?# ## #??# ## #???# & | | ?# #??# ## #???## & &##### | | ?# ##??# ## #????## & #???## ## | | ?## ##???# ##%#?????# ##?????## ##? | | ??# ##???# ## #?????# ##???????? #?? | | ??# ##??# ##%####??# #????????? ? | | ??# #### ## % #??# #??????## # | | ??# ##### #??# #????# # | | ??## ######### ##?# #??? ### | | ???## #??# #?# #?? ?? | | ????# ##??# #?# ## #?? | | ????## #???# #?# | #?? | | ?????## #???# ### # #??? | | ??????## #???# ## dd### #???? | | ???????## ##???# # #?? #???? | | ????????####????# ##?? #???? | | ????????????????## #??? ???? | | ?????????????????# ##???? ???? | | ???????????????### @ #??????## ????? | | ???????????????# #?????????????? | | ??????????###### ! == #?????????????? | | ??????????# ## #?????????????? | | ?????# ## #### ### ####?????????????? | | ???????# #??# #?#### ##????? #????????? | | ???????### ##??# ##???# % ##### #????????? | | ?????????##???## #???# #????????? | | ?????????###### ##??## #????????? | | ????####### #% #???# #######????????? | | ????# %= #???## ###????????????? | | ????# = [ #????## ##???????????? | | ????# ### # #?????## #???????????? | | ????# #?###### ##????## #???????????? | | ????# #????## ##??## ##???????????? | | ????# #???## #?## ##????????????? | | ????# #???# #?# ##????????????? | | ????# #???# #?# ##???????????? | | ????# #???# ## ##?## #???????????? | | ????#% #???## ######???# #???????????? | | ????# !#????####???????## ##???????????? | | ????# #????????????#### ##????????????? | | ????# #???????????## ##?????????????? | | ????# #??????????## ##??????????????? | | ????# #??????????# #???????????????? | +----------------------------------------------------+ Best States ------------- Heat Dissipation 28 Energy Generation 14 Energy Capacity 280 Matter Stores 300 Matter Capacity 300 Sight Range 16 Robot Scan Range 15 Terrain Scan Density 10 Armor Coverage 150 Evasion (%) 41 Recoil Reduction 2 Offensive Hacking 10 Authchip Count 1 Item Schematics ----------------- Cesium-ion Thruster | -9/Materials | Scanalyzed Imp. Light Armor Plating | -9/Materials | Scanalyzed Grenade Launcher | -9/Materials | Scanalyzed Imp. Flight Unit | -9/Materials | Scanalyzed Robot Schematics ------------------ None Fabricated ------------ Nothing Alien Tech Used ----------------- None Achievements -------------- Safety First Challenges ------------ None Game ------ Seed BladeVariableLeg Manual? 0 Play Time 00:55:40 Cumulative 16.5 hours Start 2024.03.03 @ 14:37:34 End 2024.03.03 @ 15:33:02 Sessions 1 Manual Loads 0 Difficulty Rogue Special Mode None Game No. 14 Rogue 14 Adventurer 0 Explorer 0 Win Type - Total 0 Types 0/0/0/0/0/0/0/0/0 Lore% 20 Gallery% 18 Achievement% 19 Wizard Run 0 Options --------- Layout 1 ASCII 0 Keyboard 0 Movement Numpad Keybinds 0 Fullscreen 2 Font 24/Smallcaps Map View 50x35 Zoom Use 0% Tactical HUD 1 Map Filters NONE Filters NONE Steam 0 RUN: 5d603d13-6630-467f-9ea3-b1fe70e14613